bitfinex/quotes_BTCUSD_20251221
["timestamp","ask_amount","ask_price","bid_price","bid_amount"]
[1766356060300,0.01130748,88437.0,88426.0,0.28497]
[1766356060516,0.01130735,88438.0,88426.0,0.28497]
[1766356060712,0.01130761,88436.0,88426.0,0.28497]
[1766356060956,0.01130748,88437.0,88426.0,0.28497]
[1766356062074,0.01130761,88436.0,88426.0,0.28497]
[1766356062292,0.01130761,88436.0,88426.0,0.28465266]
[1766356062973,0.18218722,88439.0,88427.0,0.01130876]
[1766356063148,0.01130748,88437.0,88426.0,0.28465266]
[1766356063557,0.01130761,88436.0,88426.0,0.28465266]
[1766356063939,0.01130748,88437.0,88426.0,0.28465266]
[1766356064143,0.01130761,88436.0,88426.0,0.28465266]
[1766356064341,0.01130748,88437.0,88426.0,0.28465266]
[1766356065291,0.28938735,88438.0,88426.0,0.29596155]
[1766356065438,0.01130748,88437.0,88426.0,0.28465266]
[1766356065640,0.01130774,88435.0,88426.0,0.28465266]
[1766356066065,0.01130761,88436.0,88426.0,0.28465266]
[1766356066642,0.27808,88434.0,88423.0,0.00568]
[1766356066841,0.01130774,88435.0,88423.0,0.00568]
[1766356067462,0.11288,88432.0,88423.0,0.00568]
[1766356067694,0.27808,88432.0,88423.0,0.00558]
[1766356067928,0.27808,88432.0,88423.0,0.00548]
[1766356068811,0.01130799,88433.0,88423.0,0.00548]
[1766356069186,0.1652,88430.0,88423.0,0.00548]
[1766356069384,0.27808,88430.0,88423.0,0.00548]
[1766356072187,0.01130799,88433.0,88423.0,0.00548]
[1766356072380,0.27808,88431.0,88423.0,0.00548]
[1766356072595,0.11288,88430.0,88423.0,0.00548]
[1766356073743,0.28938837,88430.0,88423.0,0.00548]
[1766356075964,0.27808,88430.0,88423.0,0.00548]
[1766356076210,0.28938837,88430.0,88423.0,0.00548]
[1766356078361,0.27808,88430.0,88423.0,0.00548]
[1766356079736,0.28938863,88428.0,88423.0,0.00548]
[1766356079892,0.27808,88428.0,88423.0,0.00548]
[1766356081875,0.1652,88431.0,88415.0,0.01131029]
[1766356082075,0.1652,88431.0,88419.0,0.01130978]
[1766356082076,0.1652,88427.0,88419.0,0.01130978]
[1766356082268,0.12418812,88432.0,88419.0,0.01130978]
[1766356082269,0.00568,88429.0,88420.0,0.01130965]
[1766356082468,0.00568,88429.0,88422.0,0.28497]
[1766356087016,0.005131,88429.0,88423.0,0.29679927]
[1766356087216,0.005131,88429.0,88424.0,0.01130914]
[1766356087589,0.004931,88429.0,88424.0,0.01130914]
[1766356088407,0.00568,88433.0,88424.0,0.01130914]
[1766356088553,0.00568,88433.0,88423.0,0.29679927]
[1766356089274,0.00568,88433.0,88424.0,0.01130914]
[1766356089470,0.00568,88433.0,88423.0,0.29679927]
[1766356089652,0.00568,88433.0,88424.0,0.01130914]
[1766356090082,0.00568,88433.0,88425.0,0.01130901]
[1766356090288,0.00568,88433.0,88424.0,0.01130914]
[1766356090507,0.00568,88433.0,88423.0,0.29679927]
[1766356090753,0.00568,88433.0,88424.0,0.01130914]
[1766356090953,0.00568,88433.0,88423.0,0.29679927]
[1766356091158,0.00568,88433.0,88423.0,0.35334547]
[1766356092127,0.00568,88433.0,88425.0,0.01130901]
[1766356092328,0.00568,88433.0,88424.0,0.01130914]
[1766356092533,0.00568,88433.0,88423.0,0.28549]
[1766356092735,0.00568,88433.0,88423.0,0.29679927]
[1766356093310,0.00568,88433.0,88423.0,0.28549]
[1766356093459,0.00568,88433.0,88425.0,0.01130901]
[1766356093873,0.00568,88433.0,88424.0,0.01130914]
[1766356094252,0.00568,88433.0,88423.0,0.28549]
[1766356095145,0.00568,88433.0,88423.0,0.29679927]
[1766356095354,0.00568,88433.0,88423.0,0.28549]
[1766356095558,0.00568,88433.0,88423.0,0.29679927]
[1766356096140,0.00568,88433.0,88424.0,0.01130914]
[1766356098394,0.00568,88433.0,88423.0,0.29679927]
[1766356099149,0.00568,88433.0,88424.0,0.01130914]
[1766356100058,0.01130812,88432.0,88419.0,0.01130978]
[1766356100198,0.29234,88431.0,88420.0,0.01698965]
[1766356100399,0.29234,88431.0,88420.0,0.01678965]
[1766356101040,0.29234,88431.0,88421.0,0.01130953]
[1766356101362,0.29234,88431.0,88420.0,0.01678965]
[1766356101735,0.29234,88431.0,88421.0,0.01130953]
[1766356102359,0.29234,88431.0,88420.0,0.01678965]
[1766356103224,0.29234,88431.0,88421.0,0.01130953]
[1766356104308,0.29234,88431.0,88422.0,0.0113094]
[1766356105806,0.29234,88431.0,88423.0,0.01130927]
[1766356106505,0.29234,88431.0,88422.0,0.0113094]
[1766356107957,0.29234,88431.0,88423.0,0.01130927]
[1766356108508,0.29234,88431.0,88422.0,0.0113094]
[1766356108720,0.17707,88431.0,88423.0,0.01130927]
[1766356108915,0.00568,88433.0,88431.0,0.00055]
[1766356109137,0.02269399,88443.0,88435.0,0.0565387]
[1766356109256,0.04056794,88453.0,88438.0,0.30045735]
[1766356109257,0.00578,88449.0,88438.0,0.30045735]
[1766356109459,0.00578,88449.0,88439.0,0.01130722]
[1766356109655,0.00024618,88444.0,88438.0,0.30045735]
[1766356110324,0.00060331,88444.0,88438.0,0.30045735]
[1766356110863,0.00060331,88444.0,88438.0,0.28915]
[1766356111126,0.00060331,88444.0,88438.0,0.30045735]
[1766356111560,0.00060331,88444.0,88438.0,0.28915]
[1766356111935,0.00060331,88444.0,88438.0,0.16806]
[1766356114032,0.00060331,88444.0,88437.0,0.00568]
[1766356114242,0.00060331,88444.0,88430.0,0.01130837]
[1766356114243,0.01130684,88442.0,88430.0,0.01130837]
[1766356114442,0.01130684,88442.0,88431.0,0.00568]
[1766356114653,0.11684,88440.0,88431.0,0.00568]
[1766356114870,0.23870875,88432.0,88428.0,0.00568]
[1766356115146,0.23870875,88432.0,88417.0,0.05654957]
[1766356115147,0.2990085,88429.0,88424.0,0.00568]
[1766356115360,0.01130927,88423.0,88415.0,0.01120863]
[1766356115562,0.01130914,88424.0,88415.0,0.01120863]
[1766356115765,0.01130953,88421.0,88416.0,0.00568]
[1766356115969,0.01130978,88419.0,88415.0,0.00568]
[1766356116195,0.01131029,88415.0,88406.0,0.03397314]
[1766356116432,0.01131029,88415.0,88400.0,0.01131221]
[1766356116433,0.01131029,88415.0,88407.0,0.00568]
[1766356116434,0.29584042,88414.0,88407.0,0.00568]
[1766356116653,0.29584042,88414.0,88408.0,0.00568]
[1766356116852,0.01131055,88413.0,88408.0,0.00568]
[1766356117300,0.29584042,88414.0,88408.0,0.00568]
[1766356117649,0.01131055,88413.0,88408.0,0.00568]
[1766356118118,0.28453,88414.0,88408.0,0.00568]
[1766356118324,0.16349,88414.0,88413.0,0.000549]
[1766356118681,0.16349,88414.0,88408.0,0.00568]
[1766356119111,0.01131004,88417.0,88408.0,0.00568]
[1766356119308,0.01130991,88418.0,88408.0,0.00568]
[1766356119690,0.29583978,88419.0,88408.0,0.00568]
[1766356119896,0.01130991,88418.0,88408.0,0.00568]
[1766356120112,0.29583978,88419.0,88408.0,0.00568]
[1766356120561,0.01130991,88418.0,88408.0,0.00568]
[1766356121334,0.01130991,88418.0,88406.0,0.01141144]
[1766356121539,0.01130991,88418.0,88407.0,0.00568]
[1766356121790,0.28453,88419.0,88407.0,0.00568]
[1766356121990,0.29583978,88419.0,88407.0,0.00568]
[1766356122379,0.29583978,88419.0,88407.0,0.01699132]
[1766356122550,0.29583978,88419.0,88408.0,0.01131119]
[1766356122724,0.29583978,88419.0,88407.0,0.01699132]
[1766356123138,0.01130927,88423.0,88419.0,0.000549]
[1766356123347,0.01130927,88423.0,88411.0,0.29064]
[1766356123596,0.28453,88422.0,88411.0,0.3019508]
[1766356123772,0.28453,88422.0,88411.0,0.1821608]
[1766356123983,0.16349,88422.0,88411.0,0.1821608]
[1766356124219,0.28453,88421.0,88411.0,0.17085]
[1766356124419,0.29583953,88421.0,88411.0,0.17085]
[1766356124597,0.28453,88421.0,88411.0,0.17085]
[1766356125078,0.29583953,88421.0,88411.0,0.17085]
[1766356126100,0.28453,88421.0,88411.0,0.17085]
[1766356126844,0.29583953,88421.0,88411.0,0.17085]
[1766356129560,0.28453,88421.0,88411.0,0.17085]
[1766356130798,0.29583953,88421.0,88411.0,0.17085]
[1766356131310,0.28453,88421.0,88411.0,0.17085]
[1766356132736,0.29583953,88421.0,88411.0,0.17085]
[1766356133543,0.06785794,88420.0,88411.0,0.17085]
[1766356133746,0.29583953,88421.0,88411.0,0.17085]
[1766356134349,0.01130965,88420.0,88411.0,0.17085]
[1766356134558,0.28453,88421.0,88411.0,0.17085]
[1766356134939,0.29583953,88421.0,88411.0,0.17085]
[1766356135348,0.29583965,88420.0,88407.0,0.13110132]
[1766356135695,0.28453,88420.0,88409.0,0.01131106]
[1766356135902,0.28453,88420.0,88410.0,0.00568]
[1766356141217,0.28453,88420.0,88412.0,0.05655327]
[1766356141381,0.162941,88420.0,88413.0,0.01131055]
[1766356141578,0.162741,88420.0,88413.0,0.01131055]
[1766356142008,0.162741,88420.0,88412.0,0.01131068]
[1766356143491,0.13802901,88425.0,88412.0,0.01131068]
[1766356143699,0.0002,88426.0,88410.0,0.00568]
[1766356143897,0.03047744,88437.0,88426.0,0.1714]
[1766356143898,0.17479748,88437.0,88426.0,0.1714]
[1766356144138,0.28453,88435.0,88426.0,0.00568]
[1766356144798,0.28453,88435.0,88427.0,0.01130876]
[1766356146209,0.16349,88435.0,88427.0,0.01130876]
[1766356147425,0.16349,88435.0,88428.0,0.01130863]
[1766356149820,0.16349,88435.0,88427.0,0.01130876]
[1766356158438,0.00568,88437.0,88428.0,0.29022]
[1766356160320,0.00568,88437.0,88428.0,0.30152863]
[1766356160767,0.00568,88437.0,88428.0,0.29022]
[1766356164221,0.00568,88437.0,88428.0,0.17424]
[1766356164922,0.28939,88436.0,88426.0,0.00568]
[1766356165569,0.28939,88436.0,88426.0,0.01698889]
[1766356165948,0.28939,88436.0,88426.0,0.47826819]
[1766356167270,0.28939,88436.0,88426.0,0.01698889]
[1766356167486,0.28939,88436.0,88427.0,0.01130876]
[1766356167639,0.16676,88436.0,88427.0,0.01130876]
[1766356167852,0.16676,88436.0,88426.0,0.47826819]
[1766356169709,0.16676,88436.0,88427.0,0.01130876]
[1766356169911,0.00568,88437.0,88428.0,0.01130863]
[1766356170139,0.00568,88437.0,88431.0,0.17037]
[1766356170310,0.00568,88438.0,88432.0,0.28994]
[1766356175584,0.03060395,88449.0,88436.0,0.16185]
[1766356175831,0.00568,88445.0,88438.0,0.01130735]
[1766356176087,0.00603713,88445.0,88439.0,0.27981]
[1766356176275,0.00603713,88445.0,88440.0,0.11796]
[1766356183228,0.00603713,88445.0,88440.0,0.27981]
[1766356183636,0.00603713,88445.0,88441.0,0.01130697]
[1766356183838,0.00603713,88445.0,88440.0,0.2911171]
[1766356185202,0.00603713,88445.0,88435.0,0.5178124]
[1766356185203,0.000549,88440.0,88436.0,0.00568]
[1766356185407,0.00603713,88445.0,88436.0,0.00548]
[1766356185818,0.28168713,88445.0,88436.0,0.00548]
[1766356186223,0.16740713,88445.0,88436.0,0.00548]
[1766356187081,0.16740713,88445.0,88433.0,0.17315799]
[1766356187082,0.16137,88435.0,88428.0,0.00568]
[1766356187283,0.27565,88435.0,88428.0,0.00568]
[1766356187926,0.16137,88435.0,88428.0,0.01698863]
[1766356188641,0.16137,88435.0,88428.0,0.00568]
[1766356191893,0.16137,88435.0,88428.0,0.01698863]
[1766356196342,0.16137,88435.0,88428.0,0.00568]
[1766356196845,0.16137,88435.0,88428.0,0.01698863]
[1766356197008,0.16137,88435.0,88428.0,0.00568]
[1766356197409,0.16137,88435.0,88427.0,0.01130876]
[1766356200043,0.16137,88435.0,88428.0,0.01130863]
[1766356200453,0.16137,88435.0,88427.0,0.01130876]
[1766356200675,0.16137,88435.0,88426.0,0.01698889]
[1766356200886,0.16137,88435.0,88427.0,0.01130876]
[1766356201433,0.16137,88435.0,88426.0,0.01698889]
[1766356201843,0.01130684,88442.0,88429.0,0.0113085]
[1766356202040,0.00025713,88445.0,88438.0,0.01130735]
[1766356202241,0.00578,88449.0,88439.0,0.16185]
[1766356202447,0.0002,88451.0,88446.0,0.01130633]
[1766356202755,0.0002,88455.0,88448.0,0.16185]
[1766356202959,0.0002,88455.0,88449.0,0.11796]
[1766356204612,0.0002,88455.0,88448.0,0.16185]
[1766356204810,0.0002,88455.0,88448.0,0.1613]
[1766356205068,0.0002,88455.0,88445.0,0.00568]
[1766356206068,0.16517,88455.0,88445.0,0.00568]
[1766356206566,0.28744,88455.0,88445.0,0.00568]
[1766356206692,0.28744,88455.0,88445.0,0.01698646]
[1766356207103,0.28744,88455.0,88445.0,0.00568]
[1766356207317,0.28744,88455.0,88445.0,0.01698646]
[1766356207992,0.00024628,88452.0,88445.0,0.01698646]
[1766356209887,0.01155184,88452.0,88445.0,0.00568]
[1766356210067,0.28724,88448.0,88441.0,0.00568]
[1766356210223,0.05652975,88449.0,88434.0,0.17081]
[1766356210224,0.28724,88445.0,88440.0,0.00568]
[1766356210425,0.28724,88445.0,88440.0,0.00577684]
[1766356210656,0.16497,88445.0,88440.0,0.00577684]
[1766356210808,0.00568,88450.0,88440.0,0.00577684]
[1766356210809,0.29874518,88455.0,88445.0,0.001099]
[1766356211041,0.01130556,88452.0,88445.0,0.001099]
[1766356211252,0.16497,88447.0,88442.0,0.00568]
[1766356211681,0.05652589,88456.0,88440.0,9.684e-05]
[1766356211682,0.0002,88457.0,88449.0,0.01130595]
[1766356211887,0.0002,88457.0,88443.0,0.22613197]
[1766356211888,0.0002,88457.0,88443.0,0.00568]
[1766356211889,0.000549,88449.0,88443.0,0.00568]
[1766356212091,0.000549,88449.0,88445.0,0.01130646]
[1766356212293,0.01150492,88457.0,88445.0,0.01130646]
[1766356212294,0.00568,88457.0,88448.0,0.01130607]
[1766356212492,0.04524,88471.0,88443.0,0.17649]
[1766356212493,0.01130467,88459.0,88449.0,0.00568]
[1766356212694,0.04524,88471.0,88449.0,0.00568]
[1766356212695,0.01130377,88466.0,88459.0,0.000549]
[1766356212919,0.01130352,88468.0,88459.0,0.000549]
[1766356213094,0.00568,88470.0,88458.0,0.12034]
[1766356213095,0.041392,88470.0,88458.0,0.12034]
[1766356213295,0.041392,88470.0,88462.0,0.17081]
[1766356213296,0.02440874,88470.0,88462.0,0.17081]
[1766356213509,0.01130275,88474.0,88456.0,0.00568]
[1766356213510,0.01130377,88466.0,88457.0,0.12034]
[1766356213716,0.06782803,88459.0,88456.0,0.00568]
[1766356213912,0.06782803,88459.0,88450.0,0.46107322]
[1766356213913,0.01130505,88456.0,88449.0,0.17081]
[1766356214117,0.01130543,88453.0,88450.0,0.00568]
[1766356214316,0.06783303,88453.0,88450.0,0.00568]
[1766356216116,0.06783303,88453.0,88450.0,0.00513]
[1766356216320,0.12227,88458.0,88450.0,0.00513]
[1766356216526,0.01130531,88454.0,88450.0,0.00513]
[1766356216747,0.05652591,88455.0,88454.0,0.00055]
[1766356216945,0.01130543,88453.0,88450.0,0.00437891]
[1766356217902,0.01130543,88453.0,88450.0,0.00382991]
[1766356217903,0.06783269,88453.0,88450.0,0.00382991]
[1766356218438,0.05652591,88455.0,88450.0,0.00382991]
[1766356218791,0.01130492,88457.0,88450.0,0.00382991]
[1766356218792,0.06782962,88457.0,88450.0,0.00382991]
[1766356219128,0.01130543,88453.0,88450.0,0.00382991]
[1766356219456,0.01130505,88456.0,88450.0,0.00382991]
[1766356220051,0.01130518,88455.0,88450.0,0.00382991]
[1766356220284,0.01130505,88456.0,88450.0,0.00382991]
[1766356220498,0.01130518,88455.0,88450.0,0.00382991]
[1766356220705,0.01130492,88457.0,88450.0,0.00382991]
[1766356221067,0.01130505,88456.0,88450.0,0.00382991]
[1766356221271,0.04,88516.0,88451.0,0.29115]
[1766356221272,0.05652212,88461.0,88451.0,0.29115]
[1766356221472,0.0115508,88460.0,88452.0,0.29115]
[1766356221698,0.01130467,88459.0,88452.0,0.29115]
[1766356221905,0.01130492,88457.0,88452.0,0.29115]
[1766356222566,0.01130467,88459.0,88452.0,0.29115]
[1766356223261,0.01130467,88459.0,88452.0,0.17081]
[1766356223465,0.01130403,88464.0,88459.0,0.000549]
[1766356223680,0.01130416,88463.0,88456.0,0.12034]
[1766356223892,0.01130428,88462.0,88456.0,0.29115]
[1766356224085,0.01130416,88463.0,88456.0,0.29115]
[1766356224493,0.01130377,88466.0,88456.0,0.29115]
[1766356225007,0.00126915,88456.0,88455.0,0.29683]
[1766356225209,0.00072015,88456.0,88455.0,0.29683]
[1766356225833,0.01130352,88468.0,88457.0,0.12034]
[1766356226156,0.01130352,88468.0,88457.0,0.29115]
[1766356226357,0.06219672,88470.0,88457.0,0.29115]
[1766356226358,0.03569739,88469.0,88457.0,0.29115]
[1766356226680,0.01130339,88469.0,88457.0,0.29115]
[1766356227177,0.01130352,88468.0,88457.0,0.29115]
[1766356227317,0.01698326,88470.0,88457.0,0.30245492]
[1766356227526,0.01698326,88470.0,88457.0,0.29115]
[1766356228134,0.01698326,88470.0,88455.0,0.00568]
[1766356228135,0.01130352,88468.0,88460.0,0.11784]
[1766356228372,0.01130326,88470.0,88464.0,0.11784]
[1766356228373,0.024394,88470.0,88464.0,0.11784]
[1766356228675,0.01698275,88474.0,88464.0,0.28066]
[1766356228971,0.00568,88474.0,88464.0,0.28066]
[1766356229174,0.01698275,88474.0,88464.0,0.28066]
[1766356229617,0.00568,88474.0,88464.0,0.28066]
[1766356229833,0.0002,88475.0,88464.0,0.01130403]
[1766356230050,0.0002,88475.0,88463.0,0.01813134]
[1766356230051,0.0002,88475.0,88469.0,0.01130339]
[1766356230259,0.0002,88475.0,88470.0,0.11784]
[1766356233123,0.03569586,88481.0,88468.0,0.01130352]
[1766356233124,0.024394,88481.0,88472.0,0.16282]
[1766356233322,0.00010699,88481.0,88475.0,0.11784]
[1766356234206,0.00010699,88481.0,88477.0,0.01813134]
[1766356234413,0.024394,88484.0,88479.0,0.16282]
[1766356234414,4e-06,88484.0,88479.0,0.16282]
[1766356234686,3.95e-06,88492.0,88485.0,0.16282]
[1766356234811,3.95e-06,88492.0,88479.0,0.01356254]
[1766356234812,0.00568,88495.0,88491.0,0.01813134]
[1766356235031,0.000549,88491.0,88487.0,0.11784]
[1766356235418,0.00568,88495.0,88487.0,0.11784]
[1766356235605,0.00568,88495.0,88491.0,0.01813134]
[1766356236038,0.00568,88495.0,88486.0,0.16282]
[1766356236039,0.000549,88491.0,88486.0,0.16282]
[1766356236251,0.01184958,88491.0,88486.0,0.16227]
[1766356236458,0.01130045,88492.0,88486.0,0.16227]
[1766356236886,0.0113002,88494.0,88486.0,0.16227]
[1766356237058,0.01130032,88493.0,88486.0,0.16227]
[1766356237954,0.0113002,88494.0,88486.0,0.16227]
[1766356238176,0.01130007,88495.0,88486.0,0.16227]
[1766356238392,0.18189994,88496.0,88486.0,0.16227]
[1766356238605,0.1706,88496.0,88486.0,0.16227]
[1766356238809,0.18189994,88496.0,88486.0,0.28346]
[1766356239011,0.1706,88496.0,88486.0,0.28346]
[1766356239636,0.18189994,88496.0,88486.0,0.28346]
[1766356240031,0.1706,88496.0,88486.0,0.28346]
[1766356240478,0.00083087,88487.0,88486.0,0.28346]
[1766356240655,0.00028087,88487.0,88486.0,0.28346]
[1766356243987,0.00028087,88487.0,88486.0,0.16227]
[1766356245763,0.00028087,88487.0,88486.0,0.28346]
[1766356248447,0.04056794,88506.0,88493.0,0.12119]
[1766356248668,0.22266648,88507.0,88499.0,0.01813134]
[1766356248892,0.18209854,88507.0,88499.0,0.01813134]
[1766356249267,0.01129866,88506.0,88499.0,0.01813134]
[1766356249884,0.01149854,88507.0,88499.0,0.01694793]
[1766356250730,0.0002,88507.0,88499.0,0.01694793]
[1766356251170,0.00030082,88507.0,88499.0,0.01694793]
[1766356251801,0.0565379,88512.0,88499.0,0.01694793]
[1766356251802,0.01129739,88516.0,88507.0,0.0003]
[1766356252009,0.01129764,88514.0,88507.0,0.12119]
[1766356252214,0.01129777,88513.0,88507.0,0.12119]
[1766356252437,0.0112979,88512.0,88507.0,0.12119]
[1766356252638,0.01129777,88513.0,88507.0,0.12119]
[1766356252838,0.01129764,88514.0,88507.0,0.12119]
[1766356253039,0.01129726,88517.0,88507.0,0.12119]
[1766356253371,0.08156974,88536.0,88510.0,0.01129815]
[1766356253557,0.46096023,88540.0,88500.0,0.46096023]
[1766356253558,0.01159624,88525.0,88517.0,0.121739]
[1766356253873,0.01159624,88525.0,88517.0,0.12119]
[1766356253874,0.0003,88525.0,88517.0,0.12119]
[1766356254703,0.0003,88525.0,88518.0,0.12731]
[1766356254926,0.00568,88528.0,88518.0,0.12731]
[1766356254927,0.00568,88528.0,88523.0,0.2482]
[1766356255149,0.00568,88528.0,88523.0,0.18710445]
[1766356256205,0.00568,88528.0,88524.0,0.12119]
[1766356256433,0.00568,88528.0,88517.0,0.01129726]
[1766356256434,0.00055,88524.0,88517.0,0.12119]
[1766356256639,0.00568,88528.0,88517.0,0.12119]
[1766356256840,0.00568,88529.0,88517.0,0.12119]
[1766356257098,0.00568,88529.0,88519.0,0.12119]
[1766356257326,0.01697573,88529.0,88519.0,0.12119]
[1766356257454,0.01129586,88528.0,88519.0,0.12119]
[1766356258333,0.01129611,88526.0,88519.0,0.12119]
[1766356258535,0.01129598,88527.0,88519.0,0.12119]
[1766356259213,0.01129611,88526.0,88519.0,0.12119]
[1766356259698,0.01129598,88527.0,88519.0,0.12119]
[1766356259837,0.01129611,88526.0,88519.0,0.12119]
[1766356260288,0.01129637,88524.0,88519.0,0.12119]
[1766356260494,0.01129624,88525.0,88519.0,0.12119]
[1766356260693,0.00101493,88520.0,88519.0,0.12119]
[1766356263124,0.00101493,88520.0,88519.0,0.19116]
[1766356265122,0.00101493,88520.0,88514.0,0.01129764]
[1766356265123,0.00101493,88520.0,88514.0,0.00568]
[1766356265321,0.1706,88523.0,88511.0,0.02942937]
[1766356265471,0.1706,88523.0,88512.0,0.1268979]
[1766356265871,0.17628,88523.0,88512.0,0.1268979]
[1766356266073,0.17628,88523.0,88512.0,0.1156]
[1766356266542,0.18757649,88523.0,88512.0,0.1156]
[1766356267247,0.18757649,88523.0,88513.0,0.07232]
[1766356267248,0.00568,88523.0,88513.0,0.07232]
[1766356267451,0.00568,88523.0,88514.0,0.1156]
[1766356267677,0.01697649,88523.0,88512.0,0.07232]
[1766356267886,0.01129662,88522.0,88512.0,0.07232]
[1766356268039,0.01129662,88522.0,88511.0,0.01813134]
[1766356268248,0.18382662,88522.0,88511.0,0.01813134]
[1766356268453,0.17253,88522.0,88511.0,0.02942937]
[1766356269222,0.17253,88522.0,88512.0,0.0112979]
[1766356269667,0.17253,88522.0,88513.0,0.01129777]
[1766356270349,0.17253,88522.0,88512.0,0.0112979]
[1766356270546,0.00086119,88515.0,88512.0,0.0112979]
[1766356270840,0.17253,88522.0,88512.0,0.0110979]
[1766356271045,0.01129777,88513.0,88507.0,0.01697573]
[1766356271266,1.12914391,88563.0,88500.0,0.00568]
[1766356271267,0.17253,88507.0,88500.0,0.00568]
[1766356271550,0.01129879,88505.0,88500.0,0.00578082]
[1766356271870,0.01129892,88504.0,88500.0,0.00578082]
[1766356272270,0.01129879,88505.0,88500.0,0.00578082]
[1766356272521,0.18382854,88507.0,88492.0,0.01130045]
[1766356272522,0.17253,88507.0,88492.0,0.01129892]
[1766356272723,0.18382917,88502.0,88493.0,0.00568]
[1766356272880,0.18393608,88502.0,88493.0,0.00568]
[1766356273496,0.18393608,88502.0,88492.0,0.1156]
[1766356273736,0.01129943,88500.0,88492.0,0.1156]
[1766356274056,0.01129956,88499.0,88492.0,0.1156]
[1766356274286,0.01129994,88496.0,88491.0,0.00568]
[1766356274436,0.01129994,88496.0,88479.0,0.05650999]
[1766356274437,0.17253,88489.0,88470.0,0.57591183]
[1766356274642,0.17253,88489.0,88468.0,0.20937276]
[1766356274643,0.17253,88489.0,88468.0,0.09224]
[1766356274644,0.01130224,88478.0,88468.0,0.09224]
[1766356274847,0.22603116,88484.0,88468.0,0.09224]
[1766356274848,0.17253,88487.0,88474.0,0.1156]
[1766356275168,0.22600072,88496.0,88478.0,0.1156]
[1766356275169,0.00568,88486.0,88478.0,0.1156]
[1766356275385,0.00568,88486.0,88480.0,0.1156]
[1766356275576,0.01130071,88490.0,88480.0,0.1156]
[1766356276883,0.01130058,88491.0,88480.0,0.1156]
[1766356277084,0.01698058,88491.0,88480.0,0.1156]
[1766356277439,0.01130147,88484.0,88480.0,0.1156]
[1766356277651,0.00568,88491.0,88473.0,0.20906]
[1766356277652,0.01130109,88487.0,88473.0,0.20906]
[1766356277857,0.01130122,88486.0,88476.0,0.1156]
[1766356278061,0.0113016,88483.0,88476.0,0.1156]
[1766356278289,0.01130173,88482.0,88474.0,0.00568]
[1766356278680,0.01130173,88482.0,88474.0,0.12128]
[1766356279277,0.01130237,88477.0,88474.0,0.00568]
[1766356279499,0.01130237,88477.0,88471.0,0.00568]
[1766356279709,0.01130262,88475.0,88471.0,0.00568]
[1766356279919,0.01130262,88475.0,88462.0,0.01130428]
[1766356279920,0.01130262,88475.0,88461.0,0.1156]
[1766356279921,0.01130313,88471.0,88461.0,0.1156]
[1766356280139,0.01130313,88471.0,88462.0,0.00568]
[1766356280140,0.01130364,88467.0,88462.0,0.00568]
[1766356280336,0.01130377,88466.0,88462.0,0.00568]
[1766356280568,0.0113039,88465.0,88462.0,0.00568]
[1766356281013,0.06782199,88467.0,88462.0,0.00578699]
[1766356281014,0.01130364,88467.0,88462.0,0.00578699]
[1766356281457,0.0113039,88465.0,88462.0,0.00010699]
[1766356281667,0.0113039,88465.0,88454.0,0.1156]
[1766356281668,0.1838339,88465.0,88458.0,0.00568]
[1766356281877,0.01130416,88463.0,88458.0,0.00568]
[1766356282050,0.17253,88465.0,88458.0,0.00568]
[1766356284439,0.1838339,88465.0,88458.0,0.00568]
[1766356284649,0.17253,88465.0,88458.0,0.00568]
[1766356287426,0.1838339,88465.0,88458.0,0.00568]
[1766356287633,0.1838339,88465.0,88448.0,0.05652982]
[1766356287634,0.0565242,88458.0,88441.0,0.01130697]
[1766356287839,0.0565242,88458.0,88446.0,0.12478633]
[1766356287840,0.0113048,88458.0,88446.0,0.12478633]
[1766356288283,0.17257,88460.0,88447.0,0.1247862]
[1766356288479,0.18387454,88460.0,88448.0,0.01130607]
[1766356288857,0.18387454,88460.0,88448.0,0.11348]
[1766356288858,0.0113048,88458.0,88448.0,0.11348]
[1766356289059,0.01130492,88457.0,88449.0,0.00568]
[1766356289264,0.01130467,88459.0,88449.0,0.00568]
[1766356289436,0.18387454,88460.0,88449.0,0.00568]
[1766356290049,0.01130467,88459.0,88449.0,0.00568]
[1766356290261,0.64500923,88460.0,88449.0,0.00568]
[1766356290674,0.0113048,88458.0,88449.0,0.00568]
[1766356291047,0.01130467,88459.0,88449.0,0.00568]
[1766356291380,0.64500923,88460.0,88449.0,0.00568]
[1766356291936,0.01130467,88459.0,88449.0,0.00568]
[1766356292135,0.17257,88458.0,88449.0,0.00568]
[1766356298122,0.17257,88458.0,88445.0,0.01130646]
[1766356298123,0.17257,88458.0,88436.0,0.11708]
[1766356298124,0.11447,88458.0,88436.0,0.11708]
[1766356298342,0.00568,88459.0,88436.0,9.684e-05]
[1766356298343,0.01130722,88439.0,88436.0,9.684e-05]
[1766356298562,0.06784336,88439.0,88436.0,9.684e-05]
[1766356298758,0.06784336,88439.0,88429.0,0.00568]
[1766356298759,0.01130748,88437.0,88429.0,0.00568]
[1766356298969,0.01141429,88437.0,88429.0,0.00568]
[1766356299204,0.01130774,88435.0,88429.0,0.00568]
[1766356299605,0.01130774,88435.0,88423.0,0.04524]
[1766356299606,0.01130837,88430.0,88423.0,0.04524]
[1766356299818,0.01130812,88432.0,88424.0,0.11708]
[1766356300304,0.01130812,88432.0,88418.0,0.10825]
[1766356300305,0.01130812,88432.0,88418.0,0.0004]
[1766356300306,0.0113094,88422.0,88418.0,0.0004]
[1766356300539,0.01130953,88421.0,88418.0,0.0004]
[1766356300771,0.01130953,88421.0,88410.0,0.01813134]
[1766356300772,0.01131029,88415.0,88406.0,0.0002]
[1766356301001,0.01131029,88415.0,88407.0,0.00568]
[1766356301231,0.01130991,88418.0,88408.0,0.11708]
[1766356301429,0.01130978,88419.0,88409.0,0.11708]
[1766356301635,0.01130978,88419.0,88409.0,0.10886]
[1766356301832,0.19715953,88421.0,88410.0,0.11708]
[1766356302249,0.01130965,88420.0,88410.0,0.11708]
[1766356302565,0.19715953,88421.0,88410.0,0.11708]
[1766356302965,0.01130965,88420.0,88410.0,0.11708]
[1766356303329,0.19715953,88421.0,88410.0,0.22654]
[1766356303528,0.19715953,88421.0,88411.0,0.11708]
[1766356304346,0.18585,88421.0,88411.0,0.11708]
[1766356304798,0.19715953,88421.0,88411.0,0.11708]